[Event "*** Titled Tuesday Blitz"]
[Site "Chess.com"]
[Date "2020.05.12"]
[Round "5"]
[White "Fy_Rakotomaharo"]
[Black "2346PL"]
[Result "1-0"]
[WhiteElo "2648"]
[BlackElo "2461"]
[TimeControl "180+1"]
[EndTime "10:56:22 PDT"]
[Termination "Fy_Rakotomaharo won by resignation"]

1. e4 {[%clk 0:03:00.9]} 1... c5 {[%clk 0:02:59.9]} 2. Nf3 {[%clk 0:02:59.7]}
2... Nf6 {[%clk 0:03:00.1]} 3. e5 {[%clk 0:02:55.6]} 3... Nd5 {[%clk 0:03:00.4]}
4. Nc3 {[%clk 0:02:55.9]} 4... e6 {[%clk 0:03:00.5]} 5. Nxd5 {[%clk 0:02:42.2]}
5... exd5 {[%clk 0:03:01.4]} 6. d4 {[%clk 0:02:42.3]} 6... Qb6 {[%clk
0:03:01.2]} 7. c3 {[%clk 0:02:37.4]} 7... Nc6 {[%clk 0:03:00.7]} 8. Be2 {[%clk
0:02:30.3]} 8... cxd4 {[%clk 0:03:00.9]} 9. cxd4 {[%clk 0:02:29.7]} 9... Bb4+
{[%clk 0:03:01.1]} 10. Kf1 {[%clk 0:02:20.9]} 10... Be7 {[%clk 0:02:56.5]} 11.
h4 {[%clk 0:01:58.6]} 11... d6 {[%clk 0:02:55.8]} 12. Bg5 {[%clk 0:01:51.8]}
12... dxe5 {[%clk 0:02:34.9]} 13. dxe5 {[%clk 0:01:50.4]} 13... Be6 {[%clk
0:02:30]} 14. g3 {[%clk 0:01:41.9]} 14... Bc5 {[%clk 0:02:26.3]} 15. Qe1 {[%clk
0:01:32.5]} 15... h6 {[%clk 0:02:25.5]} 16. Bd2 {[%clk 0:01:25.7]} 16... O-O
{[%clk 0:02:09.5]} 17. Kg2 {[%clk 0:01:19.4]} 17... Rae8 {[%clk 0:02:02.7]} 18.
b4 {[%clk 0:01:07.7]} 18... Bd4 {[%clk 0:01:50.9]} 19. Nxd4 {[%clk 0:01:06.1]}
19... Qxd4 {[%clk 0:01:47.4]} 20. Bc3 {[%clk 0:00:57.3]} 20... Qb6 {[%clk
0:01:37.4]} 21. f4 {[%clk 0:00:50.3]} 21... d4 {[%clk 0:01:36.7]} 22. Bd2 {[%clk
0:00:50.7]} 22... Bd5+ {[%clk 0:01:37]} 23. Bf3 {[%clk 0:00:51]} 23... Bxf3+
{[%clk 0:01:34.5]} 24. Kxf3 {[%clk 0:00:51.9]} 24... f6 {[%clk 0:01:33.7]} 25.
e6 {[%clk 0:00:52.2]} 25... f5 {[%clk 0:01:32]} 26. Qe2 {[%clk 0:00:47.6]} 26...
Rf6 {[%clk 0:01:25.4]} 27. Qc4 {[%clk 0:00:46.9]} 27... Ne7 {[%clk 0:01:17.9]}
28. Rhe1 {[%clk 0:00:45.4]} 28... Qc6+ {[%clk 0:01:15.6]} 29. Qxc6 {[%clk
0:00:45.4]} 29... Nxc6 {[%clk 0:01:16.4]} 30. b5 {[%clk 0:00:45.3]} 30... Nd8
{[%clk 0:01:13.7]} 31. e7 {[%clk 0:00:41.3]} 31... Ne6 {[%clk 0:01:09.6]} 32.
Bb4 {[%clk 0:00:39.9]} 32... Nc7 {[%clk 0:01:04.8]} 33. a4 {[%clk 0:00:37.3]}
33... Nd5 {[%clk 0:01:04.9]} 34. Bc5 {[%clk 0:00:37.5]} 34... d3 {[%clk
0:00:56.7]} 35. Rad1 {[%clk 0:00:32.5]} 35... b6 {[%clk 0:00:51.7]} 36. Ba3
{[%clk 0:00:29.6]} 36... Nc3 {[%clk 0:00:26.3]} 37. Rxd3 {[%clk 0:00:29.2]}
37... Nxa4 {[%clk 0:00:27]} 38. Re5 {[%clk 0:00:25.2]} 38... Kf7 {[%clk
0:00:25.7]} 39. h5 {[%clk 0:00:24.6]} 39... Nc5 {[%clk 0:00:24.8]} 40. Bxc5
{[%clk 0:00:20.7]} 40... bxc5 {[%clk 0:00:25.7]} 41. Rxc5 {[%clk 0:00:20.9]}
41... Rxe7 {[%clk 0:00:26]} 42. Rdd5 {[%clk 0:00:21.8]} 42... g6 {[%clk
0:00:22.1]} 43. hxg6+ {[%clk 0:00:20.9]} 43... Kxg6 {[%clk 0:00:22.7]} 44. Rc6
{[%clk 0:00:21.4]} 44... Rxc6 {[%clk 0:00:20.3]} 45. bxc6 {[%clk 0:00:22.3]}
45... Rc7 {[%clk 0:00:20.8]} 46. Rd6+ {[%clk 0:00:21.7]} 46... Kh5 {[%clk
0:00:19.1]} 47. Rf6 {[%clk 0:00:21.2]} 47... a6 {[%clk 0:00:17.1]} 48. Rxf5+
{[%clk 0:00:21.1]} 48... Kg6 {[%clk 0:00:17.7]} 49. Rc5 {[%clk 0:00:21.2]} 49...
Kf6 {[%clk 0:00:18.3]} 50. g4 {[%clk 0:00:21.2]} 50... Ke6 {[%clk 0:00:18.6]}
51. Ke4 {[%clk 0:00:20.3]} 51... Kd6 {[%clk 0:00:18.8]} 52. Rh5 {[%clk
0:00:20.5]} 52... Kxc6 {[%clk 0:00:15.4]} 53. Rxh6+ {[%clk 0:00:20.5]} 53... Kc5
{[%clk 0:00:15.9]} 54. g5 {[%clk 0:00:19.5]} 54... a5 {[%clk 0:00:16]} 55. Ra6
{[%clk 0:00:18.8]} 55... Kb5 {[%clk 0:00:16]} 56. Ra8 {[%clk 0:00:18.7]} 56...
Kb6 {[%clk 0:00:12.8]} 57. g6 {[%clk 0:00:16.9]} 1-0

[Event "*** Titled Tuesday Blitz"]
[Site "Chess.com"]
[Date "2020.05.12"]
[Round "5"]
[White "Aureliano-Buendia"]
[Black "Chessmasterzt"]
[Result "0-1"]
[WhiteElo "2404"]
[BlackElo "2566"]
[TimeControl "180+1"]
[EndTime "10:56:23 PDT"]
[Termination "Chessmasterzt won by checkmate"]

1. d4 {[%clk 0:03:00.7]} 1... Nf6 {[%clk 0:02:56.4]} 2. c4 {[%clk 0:03:00.1]}
2... d6 {[%clk 0:02:56.8]} 3. Nc3 {[%clk 0:02:58.8]} 3... Bf5 {[%clk 0:02:55.3]}
4. f3 {[%clk 0:02:52.6]} 4... h6 {[%clk 0:02:54.9]} 5. e4 {[%clk 0:02:51.9]}
5... Bh7 {[%clk 0:02:55.4]} 6. Be3 {[%clk 0:02:51.5]} 6... Nbd7 {[%clk 0:02:48]}
7. Qd2 {[%clk 0:02:50]} 7... e5 {[%clk 0:02:48.4]} 8. d5 {[%clk 0:02:42.9]} 8...
Be7 {[%clk 0:02:48.2]} 9. Bd3 {[%clk 0:02:41.9]} 9... Nh5 {[%clk 0:02:44.8]} 10.
Nge2 {[%clk 0:02:40.2]} 10... Bg5 {[%clk 0:02:44.8]} 11. g3 {[%clk 0:02:14.1]}
11... Bxe3 {[%clk 0:02:43.1]} 12. Qxe3 {[%clk 0:02:15]} 12... Qg5 {[%clk
0:02:42.7]} 13. f4 {[%clk 0:02:10.7]} 13... exf4 {[%clk 0:02:37.5]} 14. gxf4
{[%clk 0:02:10.4]} 14... Qh4+ {[%clk 0:02:37.7]} 15. Kd2 {[%clk 0:02:08.6]}
15... g5 {[%clk 0:02:19.8]} 16. Raf1 {[%clk 0:01:41.9]} 16... gxf4 {[%clk
0:02:10.2]} 17. Nxf4 {[%clk 0:01:41.7]} 17... Ne5 {[%clk 0:02:09.9]} 18. Nxh5
{[%clk 0:01:27.9]} 18... Qxh5 {[%clk 0:02:10.8]} 19. Be2 {[%clk 0:01:28.1]}
19... Qg5 {[%clk 0:02:10]} 20. Rhg1 {[%clk 0:01:26]} 20... Qxe3+ {[%clk
0:02:09.1]} 21. Kxe3 {[%clk 0:01:26.9]} 21... Ke7 {[%clk 0:02:06.9]} 22. Nb5
{[%clk 0:01:16.7]} 22... c5 {[%clk 0:01:44.5]} 23. dxc6 {[%clk 0:01:12.7]} 23...
bxc6 {[%clk 0:01:45.4]} 24. Nd4 {[%clk 0:01:12.2]} 24... c5 {[%clk 0:01:44.8]}
25. Nb5 {[%clk 0:01:07.7]} 25... Rab8 {[%clk 0:00:51.2]} 26. b3 {[%clk
0:01:03.4]} 26... Rhg8 {[%clk 0:00:48]} 27. Nc3 {[%clk 0:00:55.1]} 27... Rxg1
{[%clk 0:00:46.8]} 28. Nd5+ {[%clk 0:00:55]} 28... Kf8 {[%clk 0:00:44.8]} 29.
Rxg1 {[%clk 0:00:54.8]} 29... Bg6 {[%clk 0:00:45.1]} 30. Bh5 {[%clk 0:00:52.8]}
30... Re8 {[%clk 0:00:38.9]} 31. Bxg6 {[%clk 0:00:51.4]} 31... fxg6 {[%clk
0:00:39.8]} 32. Rf1+ {[%clk 0:00:50.2]} 32... Kg7 {[%clk 0:00:40.3]} 33. h3
{[%clk 0:00:48.1]} 33... Nf7 {[%clk 0:00:38.6]} 34. Rf6 {[%clk 0:00:36.8]} 34...
Re5 {[%clk 0:00:29.5]} 35. h4 {[%clk 0:00:27.8]} 35... Rxd5 {[%clk 0:00:22.7]}
36. Rxf7+ {[%clk 0:00:27]} 36... Kxf7 {[%clk 0:00:23.6]} 37. exd5 {[%clk
0:00:23]} 37... a5 {[%clk 0:00:22.6]} 38. a3 {[%clk 0:00:21.2]} 38... Kf6 {[%clk
0:00:20.7]} 39. Ke4 {[%clk 0:00:17.7]} 39... g5 {[%clk 0:00:20]} 40. h5 {[%clk
0:00:17.4]} 40... Kg7 {[%clk 0:00:18.1]} 41. Kf5 {[%clk 0:00:16.9]} 41... Kf7
{[%clk 0:00:18.6]} 42. a4 {[%clk 0:00:07.6]} 42... Ke7 {[%clk 0:00:14.2]} 43.
Kg6 {[%clk 0:00:06.4]} 43... g4 {[%clk 0:00:14.3]} 44. Kxh6 {[%clk 0:00:07]}
44... g3 {[%clk 0:00:12.7]} 45. Kg7 {[%clk 0:00:07.4]} 45... g2 {[%clk
0:00:13.6]} 46. h6 {[%clk 0:00:08.3]} 46... g1=Q+ {[%clk 0:00:12.4]} 47. Kh8
{[%clk 0:00:08.5]} 47... Qg6 {[%clk 0:00:09.2]} 48. h7 {[%clk 0:00:08.7]} 48...
Qf7 {[%clk 0:00:08.9]} 49. b4 {[%clk 0:00:07.4]} 49... Qf8# {[%clk 0:00:09.8]}
0-1

[Event "*** Titled Tuesday Blitz"]
[Site "Chess.com"]
[Date "2020.05.12"]
[Round "5"]
[White "baby_leo"]
[Black "floplover"]
[Result "0-1"]
[WhiteElo "2076"]
[BlackElo "2234"]
[TimeControl "180+1"]
[EndTime "10:56:23 PDT"]
[Termination "floplover won on time"]

1. Nf3 {[%clk 0:03:00.6]} 1... Nf6 {[%clk 0:02:59.4]} 2. c4 {[%clk 0:02:57.7]}
2... e6 {[%clk 0:02:59.7]} 3. g3 {[%clk 0:02:55.1]} 3... d5 {[%clk 0:03:00.3]}
4. Bg2 {[%clk 0:02:54.8]} 4... Be7 {[%clk 0:02:59.5]} 5. b3 {[%clk 0:02:51.5]}
5... O-O {[%clk 0:02:59.6]} 6. Bb2 {[%clk 0:02:51.5]} 6... c5 {[%clk 0:02:59.5]}
7. O-O {[%clk 0:02:50.3]} 7... d4 {[%clk 0:02:57.3]} 8. e3 {[%clk 0:02:45.3]}
8... Nc6 {[%clk 0:02:57.5]} 9. exd4 {[%clk 0:02:40.7]} 9... cxd4 {[%clk
0:02:58.4]} 10. d3 {[%clk 0:02:39.6]} 10... Re8 {[%clk 0:02:57.4]} 11. Re1
{[%clk 0:02:38.8]} 11... Bd6 {[%clk 0:02:07]} 12. Na3 {[%clk 0:02:26]} 12... e5
{[%clk 0:01:57.2]} 13. Nc2 {[%clk 0:02:18.1]} 13... a5 {[%clk 0:01:46.9]} 14. a3
{[%clk 0:02:13.9]} 14... h6 {[%clk 0:01:44.7]} 15. h4 {[%clk 0:01:57.3]} 15...
Bf5 {[%clk 0:01:39.1]} 16. Qe2 {[%clk 0:01:34.4]} 16... Qb6 {[%clk 0:01:32.4]}
17. b4 {[%clk 0:01:28.8]} 17... axb4 {[%clk 0:01:32.2]} 18. axb4 {[%clk
0:01:26.8]} 18... Nxb4 {[%clk 0:01:31.7]} 19. Nxb4 {[%clk 0:01:21.4]} 19... Bxb4
{[%clk 0:01:22.2]} 20. Rxa8 {[%clk 0:00:57.6]} 20... Rxa8 {[%clk 0:01:23.1]} 21.
Ra1 {[%clk 0:00:43.7]} 21... Rxa1+ {[%clk 0:01:01.4]} 22. Bxa1 {[%clk
0:00:44.2]} 22... Bd6 {[%clk 0:01:02.3]} 23. Nd2 {[%clk 0:00:18.8]} 23... Qa5
{[%clk 0:00:49.1]} 24. Bb2 {[%clk 0:00:16.6]} 24... Qa2 {[%clk 0:00:47.4]} 25.
Bc1 {[%clk 0:00:14.1]} 25... Qa1 {[%clk 0:00:36.1]} 26. Qf1 {[%clk 0:00:12.7]}
26... b6 {[%clk 0:00:31]} 27. Ne4 {[%clk 0:00:11]} 27... Nxe4 {[%clk 0:00:29.2]}
28. dxe4 {[%clk 0:00:10.3]} 28... Be6 {[%clk 0:00:29.1]} 29. Bd2 {[%clk
0:00:08.1]} 29... Qa4 {[%clk 0:00:24.6]} 30. Qd3 {[%clk 0:00:06.7]} 30... Bxc4
{[%clk 0:00:22.9]} 31. Qf3 {[%clk 0:00:05.5]} 31... b5 {[%clk 0:00:20.3]} 32.
Qf5 {[%clk 0:00:05.3]} 32... Be6 {[%clk 0:00:18.2]} 33. Qh5 {[%clk 0:00:04.6]}
33... Bf8 {[%clk 0:00:16.1]} 34. f4 {[%clk 0:00:04]} 34... b4 {[%clk 0:00:15.7]}
35. f5 {[%clk 0:00:02.7]} 35... Bc4 {[%clk 0:00:13.8]} 36. f6 {[%clk 0:00:03]}
36... g6 {[%clk 0:00:13]} 37. Qg4 {[%clk 0:00:02.3]} 37... b3 {[%clk 0:00:10.7]}
38. h5 {[%clk 0:00:02.5]} 38... b2 {[%clk 0:00:06]} 39. hxg6 {[%clk 0:00:02.3]}
39... b1=Q+ {[%clk 0:00:05.6]} 40. Kh2 {[%clk 0:00:02.6]} 40... Qa6 {[%clk
0:00:01]} 41. gxf7+ {[%clk 0:00:02.4]} 41... Kxf7 {[%clk 0:00:01]} 42. Qh5+
{[%clk 0:00:01.7]} 42... Ke6 {[%clk 0:00:01.4]} 0-1

[Event "*** Titled Tuesday Blitz"]
[Site "Chess.com"]
[Date "2020.05.12"]
[Round "5"]
[White "ljuks68"]
[Black "ama18"]
[Result "1-0"]
[WhiteElo "2389"]
[BlackElo "2503"]
[TimeControl "180+1"]
[EndTime "10:56:24 PDT"]
[Termination "ljuks68 won on time"]

1. e4 {[%clk 0:03:00.9]} 1... c5 {[%clk 0:02:59.5]} 2. Nf3 {[%clk 0:03:00.9]}
2... d6 {[%clk 0:02:57.8]} 3. d4 {[%clk 0:03:00.9]} 3... cxd4 {[%clk 0:02:58.7]}
4. Nxd4 {[%clk 0:03:01.2]} 4... Nf6 {[%clk 0:02:58.2]} 5. Nc3 {[%clk 0:03:01.2]}
5... a6 {[%clk 0:02:58.3]} 6. Bg5 {[%clk 0:03:00.8]} 6... Nbd7 {[%clk
0:02:57.4]} 7. Bc4 {[%clk 0:02:55.2]} 7... Qb6 {[%clk 0:02:56]} 8. Bb3 {[%clk
0:02:53.6]} 8... Qc5 {[%clk 0:02:50.4]} 9. f4 {[%clk 0:02:41.4]} 9... e6 {[%clk
0:02:49.7]} 10. Qd2 {[%clk 0:02:29.8]} 10... Qc7 {[%clk 0:02:48.5]} 11. O-O-O
{[%clk 0:02:28.1]} 11... Nc5 {[%clk 0:02:45.6]} 12. Bxf6 {[%clk 0:02:24.9]}
12... gxf6 {[%clk 0:02:44.7]} 13. f5 {[%clk 0:02:21.4]} 13... b5 {[%clk
0:02:37.5]} 14. Qe2 {[%clk 0:02:11.4]} 14... h5 {[%clk 0:02:34.8]} 15. Rhf1
{[%clk 0:02:06.1]} 15... Nxb3+ {[%clk 0:02:13.4]} 16. axb3 {[%clk 0:02:02.6]}
16... Be7 {[%clk 0:02:12]} 17. Qf3 {[%clk 0:01:53.3]} 17... Rb8 {[%clk
0:02:08.4]} 18. Qg3 {[%clk 0:01:41.1]} 18... b4 {[%clk 0:02:00.6]} 19. Na4
{[%clk 0:01:39.1]} 19... e5 {[%clk 0:01:58.4]} 20. Nf3 {[%clk 0:01:30.4]} 20...
Bd7 {[%clk 0:01:56.1]} 21. Nd2 {[%clk 0:01:16.8]} 21... Bxa4 {[%clk 0:01:19.3]}
22. bxa4 {[%clk 0:01:15.9]} 22... b3 {[%clk 0:01:19.2]} 23. Nxb3 {[%clk
0:01:10.8]} 23... Qc6 {[%clk 0:01:19.1]} 24. a5 {[%clk 0:01:03]} 24... Qxe4
{[%clk 0:01:10.3]} 25. Qd3 {[%clk 0:00:47.2]} 25... Qxd3 {[%clk 0:01:03.1]} 26.
Rxd3 {[%clk 0:00:46.9]} 26... Rg8 {[%clk 0:01:02.8]} 27. Rf2 {[%clk 0:00:45.8]}
27... Rb4 {[%clk 0:00:56.6]} 28. Rc3 {[%clk 0:00:33.9]} 28... Kd7 {[%clk
0:00:47.6]} 29. Rd2 {[%clk 0:00:32.9]} 29... Rc8 {[%clk 0:00:37]} 30. Nc5+
{[%clk 0:00:30.9]} 30... Ke8 {[%clk 0:00:36.6]} 31. Nxa6 {[%clk 0:00:25.5]}
31... Rxc3 {[%clk 0:00:30.5]} 32. Nxb4 {[%clk 0:00:24.8]} 32... Rc4 {[%clk
0:00:29.5]} 33. Nd5 {[%clk 0:00:22.8]} 33... Bd8 {[%clk 0:00:16.5]} 34. b4
{[%clk 0:00:22.5]} 34... Kd7 {[%clk 0:00:15.1]} 35. Kb2 {[%clk 0:00:21.4]} 35...
Kc6 {[%clk 0:00:13.9]} 36. Kb3 {[%clk 0:00:20.5]} 36... Rg4 {[%clk 0:00:11.6]}
37. c4 {[%clk 0:00:19.3]} 37... e4 {[%clk 0:00:04.1]} 38. a6 {[%clk 0:00:17.2]}
38... Bb6 {[%clk 0:00:03.4]} 39. Nxb6 {[%clk 0:00:15.4]} 39... Kxb6 {[%clk
0:00:03.3]} 40. Rxd6+ {[%clk 0:00:15.7]} 40... Ka7 {[%clk 0:00:02.6]} 41. b5
{[%clk 0:00:15.7]} 41... e3 {[%clk 0:00:02.3]} 42. Rd1 {[%clk 0:00:16.1]} 42...
Rxg2 {[%clk 0:00:01.4]} 43. Re1 {[%clk 0:00:15.7]} 43... e2 {[%clk 0:00:01.8]}
44. Kb4 {[%clk 0:00:15]} 44... Rf2 {[%clk 0:00:02.1]} 45. Kc5 {[%clk 0:00:12.6]}
45... Rxf5+ {[%clk 0:00:01.9]} 46. Kc6 {[%clk 0:00:12.8]} 46... Rf3 {[%clk
0:00:02.2]} 47. Kc7 {[%clk 0:00:10.7]} 47... Rc3 {[%clk 0:00:01.4]} 48. b6+
{[%clk 0:00:10.4]} 48... Kxa6 {[%clk 0:00:01.6]} 49. Ra1+ {[%clk 0:00:08.3]} 1-0

[Event "*** Titled Tuesday Blitz"]
[Site "Chess.com"]
[Date "2020.05.12"]
[Round "5"]
[White "Vusatiuk_Vladimir"]
[Black "louis198"]
[Result "1-0"]
[WhiteElo "2334"]
[BlackElo "2477"]
[TimeControl "180+1"]
[EndTime "10:56:25 PDT"]
[Termination "Vusatiuk_Vladimir won by checkmate"]

1. e4 {[%clk 0:03:00.9]} 1... e6 {[%clk 0:02:59.8]} 2. d4 {[%clk 0:03:00.6]}
2... d5 {[%clk 0:03:00.2]} 3. Nd2 {[%clk 0:03:01.2]} 3... Nc6 {[%clk 0:02:59.3]}
4. Ngf3 {[%clk 0:02:54.5]} 4... Nf6 {[%clk 0:02:58]} 5. exd5 {[%clk 0:02:53.5]}
5... exd5 {[%clk 0:02:57]} 6. Bd3 {[%clk 0:02:48.8]} 6... Bd6 {[%clk 0:02:51.9]}
7. c3 {[%clk 0:02:45.7]} 7... O-O {[%clk 0:02:51.3]} 8. O-O {[%clk 0:02:44.8]}
8... Ne7 {[%clk 0:02:50.3]} 9. h3 {[%clk 0:02:42]} 9... c6 {[%clk 0:02:49]} 10.
Re1 {[%clk 0:02:34.4]} 10... Ng6 {[%clk 0:02:45]} 11. Nf1 {[%clk 0:02:32.5]}
11... Qc7 {[%clk 0:02:17]} 12. Qc2 {[%clk 0:02:31.3]} 12... Bd7 {[%clk
0:02:11.5]} 13. Bg5 {[%clk 0:02:29.9]} 13... Nh5 {[%clk 0:02:09.6]} 14. Ne3
{[%clk 0:02:21.5]} 14... Bf4 {[%clk 0:01:54.9]} 15. Ng4 {[%clk 0:01:16]} 15...
Rae8 {[%clk 0:01:39.1]} 16. Bxf4 {[%clk 0:00:41.8]} 16... Nhxf4 {[%clk
0:01:37.1]} 17. Nge5 {[%clk 0:00:38]} 17... Bc8 {[%clk 0:00:53.5]} 18. Bf1
{[%clk 0:00:33.6]} 18... f6 {[%clk 0:00:51]} 19. Nxg6 {[%clk 0:00:32.8]} 19...
hxg6 {[%clk 0:00:50.3]} 20. Nh4 {[%clk 0:00:21.7]} 20... g5 {[%clk 0:00:49.5]}
21. Ng6 {[%clk 0:00:19.3]} 21... Nxg6 {[%clk 0:00:47.3]} 22. Qxg6 {[%clk
0:00:20.2]} 22... Qf7 {[%clk 0:00:47.4]} 23. Qxf7+ {[%clk 0:00:19]} 23... Kxf7
{[%clk 0:00:48.3]} 24. Bd3 {[%clk 0:00:17]} 24... g4 {[%clk 0:00:42.9]} 25. h4
{[%clk 0:00:15.2]} 25... f5 {[%clk 0:00:42.4]} 26. g3 {[%clk 0:00:14.4]} 26...
Kf6 {[%clk 0:00:41.5]} 27. a4 {[%clk 0:00:11.2]} 27... g5 {[%clk 0:00:40.4]} 28.
hxg5+ {[%clk 0:00:10.4]} 28... Kxg5 {[%clk 0:00:41.3]} 29. Kg2 {[%clk
0:00:10.4]} 29... b6 {[%clk 0:00:38.9]} 30. Rxe8 {[%clk 0:00:10.6]} 30... Rxe8
{[%clk 0:00:38.2]} 31. Rh1 {[%clk 0:00:11.5]} 31... Re7 {[%clk 0:00:36.4]} 32.
Rh8 {[%clk 0:00:10.7]} 32... Bb7 {[%clk 0:00:36.4]} 33. Rg8+ {[%clk 0:00:10.1]}
33... Kf6 {[%clk 0:00:33.4]} 34. Rf8+ {[%clk 0:00:10.4]} 34... Kg7 {[%clk
0:00:32.9]} 35. Rxf5 {[%clk 0:00:10.3]} 35... c5 {[%clk 0:00:33.8]} 36. Rg5+
{[%clk 0:00:09.7]} 36... Kf6 {[%clk 0:00:33.7]} 37. Rxg4 {[%clk 0:00:10.6]}
37... c4 {[%clk 0:00:34.2]} 38. Bb1 {[%clk 0:00:06.7]} 38... Re2 {[%clk
0:00:33.6]} 39. Rg6+ {[%clk 0:00:06.3]} 39... Kf7 {[%clk 0:00:30.2]} 40. Rh6
{[%clk 0:00:06.2]} 40... Rxb2 {[%clk 0:00:23.7]} 41. Bf5 {[%clk 0:00:06.5]}
41... b5 {[%clk 0:00:18]} 42. Rh7+ {[%clk 0:00:04.8]} 42... Kf6 {[%clk
0:00:18.4]} 43. g4 {[%clk 0:00:05.3]} 43... bxa4 {[%clk 0:00:18.1]} 44. Kg3
{[%clk 0:00:05.7]} 44... Bc8 {[%clk 0:00:12.9]} 45. Bxc8 {[%clk 0:00:04]} 45...
Rb8 {[%clk 0:00:11.2]} 46. Bf5 {[%clk 0:00:03.1]} 46... Rg8 {[%clk 0:00:11.4]}
47. Rxa7 {[%clk 0:00:03.2]} 47... Rb8 {[%clk 0:00:10.3]} 48. Rxa4 {[%clk
0:00:03.4]} 48... Rb3 {[%clk 0:00:10.9]} 49. Ra6+ {[%clk 0:00:03.2]} 49... Kg7
{[%clk 0:00:10.6]} 50. Kf4 {[%clk 0:00:04.1]} 50... Rxc3 {[%clk 0:00:10.7]} 51.
Kg5 {[%clk 0:00:04.7]} 51... Rf3 {[%clk 0:00:09.6]} 52. Ra7+ {[%clk 0:00:05.1]}
52... Kf8 {[%clk 0:00:09.7]} 53. Kf6 {[%clk 0:00:05.5]} 53... Kg8 {[%clk
0:00:09.9]} 54. Ra8# {[%clk 0:00:05.5]} 1-0

[Event "*** Titled Tuesday Blitz"]
[Site "Chess.com"]
[Date "2020.05.12"]
[Round "5"]
[White "HarryCun"]
[Black "Kislov_Oleg"]
[Result "1-0"]
[WhiteElo "2194"]
[BlackElo "2330"]
[TimeControl "180+1"]
[EndTime "10:56:25 PDT"]
[Termination "HarryCun won by checkmate"]

1. Nf3 {[%clk 0:03:00.9]} 1... d5 {[%clk 0:02:58.9]} 2. g3 {[%clk 0:03:01.3]}
2... Nf6 {[%clk 0:02:57.9]} 3. Bg2 {[%clk 0:03:01.7]} 3... Bg4 {[%clk
0:02:57.4]} 4. O-O {[%clk 0:03:01.8]} 4... c6 {[%clk 0:02:57.1]} 5. d3 {[%clk
0:03:01.9]} 5... Nbd7 {[%clk 0:02:56.7]} 6. Nbd2 {[%clk 0:03:02.5]} 6... e5
{[%clk 0:02:54.8]} 7. e4 {[%clk 0:03:02.4]} 7... dxe4 {[%clk 0:02:49.6]} 8. dxe4
{[%clk 0:03:03.3]} 8... Bc5 {[%clk 0:02:47.9]} 9. h3 {[%clk 0:03:01.9]} 9... Bh5
{[%clk 0:02:44.3]} 10. g4 {[%clk 0:03:01.9]} 10... Bg6 {[%clk 0:02:44]} 11. Re1
{[%clk 0:03:00.6]} 11... Qe7 {[%clk 0:02:36.3]} 12. Nh4 {[%clk 0:02:58.6]} 12...
Rd8 {[%clk 0:02:23.8]} 13. Nf5 {[%clk 0:02:51.4]} 13... Bxf5 {[%clk 0:02:22.9]}
14. exf5 {[%clk 0:02:51.4]} 14... O-O {[%clk 0:02:09.5]} 15. Qe2 {[%clk
0:02:29.5]} 15... Nd5 {[%clk 0:02:02.9]} 16. Nf3 {[%clk 0:02:28.4]} 16... Rfe8
{[%clk 0:01:40.2]} 17. b3 {[%clk 0:02:23]} 17... e4 {[%clk 0:01:36.8]} 18. Nh2
{[%clk 0:01:47.9]} 18... Bd4 {[%clk 0:01:30]} 19. Bd2 {[%clk 0:01:45.2]} 19...
Bxa1 {[%clk 0:01:28.3]} 20. Rxa1 {[%clk 0:01:46.1]} 20... Qe5 {[%clk 0:01:02.6]}
21. Re1 {[%clk 0:01:42.3]} 21... Qb2 {[%clk 0:00:59.6]} 22. c4 {[%clk
0:01:30.2]} 22... Nc3 {[%clk 0:00:51.3]} 23. Qe3 {[%clk 0:01:27.9]} 23... Nxa2
{[%clk 0:00:50.6]} 24. Nf1 {[%clk 0:01:24.8]} 24... b6 {[%clk 0:00:39.5]} 25.
Re2 {[%clk 0:01:22.1]} 25... Nc5 {[%clk 0:00:29.3]} 26. Bb4 {[%clk 0:01:18.5]}
26... Qa1 {[%clk 0:00:22.7]} 27. Re1 {[%clk 0:01:17.2]} 27... Qd4 {[%clk
0:00:19.7]} 28. Qxd4 {[%clk 0:01:09.6]} 28... Rxd4 {[%clk 0:00:19.8]} 29. Bxc5
{[%clk 0:01:08.7]} 29... bxc5 {[%clk 0:00:19.7]} 30. Ra1 {[%clk 0:01:06.4]}
30... Nc3 {[%clk 0:00:16]} 31. Rxa7 {[%clk 0:01:02.3]} 31... Ne2+ {[%clk
0:00:16.2]} 32. Kh2 {[%clk 0:00:58.9]} 32... Nf4 {[%clk 0:00:16.9]} 33. Rc7
{[%clk 0:00:52.4]} 33... Nxg2 {[%clk 0:00:10.1]} 34. Kxg2 {[%clk 0:00:51.4]}
34... Rd3 {[%clk 0:00:10.5]} 35. Rxc6 {[%clk 0:00:48.4]} 35... Rxb3 {[%clk
0:00:10.8]} 36. Rxc5 {[%clk 0:00:47.9]} 36... Rb2 {[%clk 0:00:11.6]} 37. Ne3
{[%clk 0:00:44.9]} 37... Rd8 {[%clk 0:00:11]} 38. Kg3 {[%clk 0:00:38.9]} 38...
h6 {[%clk 0:00:09]} 39. Re5 {[%clk 0:00:33.4]} 39... Rdd2 {[%clk 0:00:08.8]} 40.
Rxe4 {[%clk 0:00:30.2]} 40... Rxf2 {[%clk 0:00:09.1]} 41. c5 {[%clk 0:00:28.7]}
41... Rfd2 {[%clk 0:00:08.7]} 42. c6 {[%clk 0:00:26.4]} 42... Rd8 {[%clk
0:00:06.3]} 43. c7 {[%clk 0:00:22.9]} 43... Rc8 {[%clk 0:00:06.7]} 44. Nd5
{[%clk 0:00:21]} 44... Kf8 {[%clk 0:00:03.9]} 45. Rd4 {[%clk 0:00:18]} 45...
Rb3+ {[%clk 0:00:04.3]} 46. Kf4 {[%clk 0:00:16.7]} 46... Rb5 {[%clk 0:00:04.9]}
47. Ke5 {[%clk 0:00:15]} 47... Rc5 {[%clk 0:00:05.1]} 48. Kd6 {[%clk 0:00:15]}
48... Rc1 {[%clk 0:00:04.6]} 49. Kd7 {[%clk 0:00:14.9]} 49... Re8 {[%clk
0:00:02.5]} 50. Rb4 {[%clk 0:00:13]} 50... Rd1 {[%clk 0:00:02.1]} 51. Kd6 {[%clk
0:00:12.5]} 51... Rc8 {[%clk 0:00:01.2]} 52. Rb8 {[%clk 0:00:12.3]} 52... Rxb8
{[%clk 0:00:01.3]} 53. cxb8=Q# {[%clk 0:00:13.2]} 1-0